fUSD/lending_fUSD_20251101
["ID","MTS","AMOUNT","RATE_DAILY","PERIOD"]
[392827520,1762008638689,-500.0,0.000149,2]
[392827522,1762008638699,-500.0,0.000149,2]
[392827525,1762008638709,-500.0,0.000149,2]
[392827526,1762008638718,-500.0,0.000149,2]
[392827527,1762008638728,-500.0,0.000149,2]
[392827528,1762008638737,-500.0,0.000149,2]
[392827529,1762008638747,-500.0,0.000149,2]
[392827530,1762008638757,-500.0,0.000149,2]
[392827531,1762008638767,-500.0,0.000149,2]
[392827532,1762008638777,-500.0,0.000149,2]
[392827533,1762008638787,-500.0,0.000149,2]
[392827534,1762008638797,-500.0,0.000149,2]
[392827535,1762008638806,-500.0,0.000149,2]
[392827536,1762008638816,-500.0,0.000149,2]
[392827537,1762008638831,-500.0,0.000149,2]
[392827538,1762008638841,-500.0,0.000149,2]
[392827539,1762008638850,-159.75277178,0.000149,2]
[392827540,1762008638860,-548.83035324,0.000149,2]
[392827541,1762008638871,-2454.902228,0.000149,2]
[392827542,1762008638881,-300.0,0.000149,2]
[392827543,1762008638891,-300.0,0.000149,2]
[392827544,1762008638901,-300.96819241,0.000149,2]
[392827545,1762008638911,-300.0,0.000149,2]
[392827546,1762008638921,-195.0,0.000149,2]
[392827547,1762008638930,-3566.817,0.00014901,2]
[392827548,1762008638940,-286.51282012,0.00014935,2]
[392827549,1762008638949,-151.0,0.00014942,2]
[392827550,1762008638958,-151.0,0.00014942,2]
[392827551,1762008638968,-151.0,0.00014942,2]
[392827552,1762008638978,-151.0,0.00014942,2]
[392827553,1762008638987,-151.0,0.0001496,2]
[392827554,1762008638997,-151.0,0.0001496,2]
[392827555,1762008639006,-151.0,0.0001496,2]
[392827556,1762008639016,-151.0,0.0001496,2]
[392827557,1762008639025,-151.0,0.0001496,2]
[392827558,1762008639035,-151.0,0.0001496,2]
[392827559,1762008639044,-514.84070869,0.0001496,2]
[392827560,1762008639053,-500.0,0.0001496,2]
[392827561,1762008639062,-151.0,0.0001496,2]
[392827562,1762008639072,-248.71531821,0.0001496,2]
[392827563,1762008639082,-151.0,0.0001496,2]
[392827564,1762008639091,-151.0,0.0001496,2]
[392827565,1762008639100,-151.0,0.0001496,2]
[392827566,1762008639110,-151.0,0.0001496,2]
[392827567,1762008639119,-151.0,0.0001496,2]
[392827568,1762008639128,-151.0,0.0001496,2]
[392827569,1762008639138,-151.0,0.0001496,2]
[392827570,1762008639147,-151.0,0.0001496,2]
[392827571,1762008639156,-151.0,0.0001496,2]
[392827572,1762008639166,-151.0,0.0001496,2]
[392827573,1762008639175,-151.0,0.0001496,2]
[392827574,1762008639185,-151.0,0.0001496,2]
[392827575,1762008639194,-151.0,0.0001496,2]
[392827576,1762008639203,-353.18729965,0.0001496,2]
[392827577,1762008639213,-151.0,0.0001496,2]
[392827578,1762008639223,-200.0,0.0001496,2]
[392827579,1762008639232,-322.6107,0.0001496,2]
[392827580,1762008639241,-8473.40912453,0.00014969,2]
[392827581,1762008639254,-820.72916712,0.00014969,2]
[392827582,1762008639297,545.00617631,0.00014892,2]
[392827584,1762008640470,-2699.32170041,0.00014969,2]
[392827585,1762008640482,-300.35996914,0.00014969,2]
[392827586,1762008640493,-2409.71297126,0.00014969,2]
[392827587,1762008640512,-252.636388,0.00014969,2]
[392827588,1762008640523,-32034.14213804,0.00014969,2]
[392827589,1762008640532,-3519.47595964,0.00014969,2]
[392827590,1762008640544,-367.03446816,0.00014969,2]
[392827591,1762008640555,-188.08298846,0.0001497,2]
[392827592,1762008640564,-121.74589347,0.00014971,2]
[392827593,1762008640576,-294.22770336,0.00014971,2]
[392827594,1762008640662,-1083.60640317,0.00014971,2]
[392827595,1762008640672,-511.31884903,0.00014973,2]
[392827596,1762008640681,-500.0,0.00014973,2]
[392827597,1762008640691,-500.0,0.00014973,2]
[392827598,1762008640700,-500.0,0.00014973,2]
[392827599,1762008640709,-500.0,0.00014973,2]
[392827600,1762008640719,-500.0,0.00014973,2]
[392827601,1762008640729,-500.57720121,0.00014973,2]
[392827602,1762008640738,-500.0,0.00014973,2]
[392827603,1762008640747,-37327.66050225,0.00014976,2]
[392827604,1762008640757,-200.0,0.00014976,2]
[392827605,1762008640766,-290.13618,0.00014976,2]
[392827606,1762008640776,-151.0,0.00014977,2]
[392827607,1762008640786,-307.36,0.00014978,2]
[392827608,1762008640795,-322.96,0.00014978,2]
[392827609,1762008640805,-168.0,0.00014978,2]
[392827610,1762008640814,-500.0,0.00014979,2]
[392827611,1762008640823,-500.0,0.00014979,2]
[392827612,1762008640836,-620.4,0.00014979,2]
[392827613,1762008640846,-526.41873204,0.00014979,2]
[392827614,1762008640856,-500.0,0.00014979,2]
[392827615,1762008640867,-500.0,0.00014979,2]
[392827616,1762008640877,-110.91965019,0.00014979,2]
[392827617,1762008640889,-389.08034981,0.00014979,2]
[392827618,1762008640898,-142.03288213,0.00014979,2]
[392827619,1762008640910,-253.03252887,0.00014979,2]
[392827620,1762008640931,-104.934589,0.00014979,2]
[392827621,1762008640940,-500.0,0.00014979,2]
[392827622,1762008640949,-277.56065928,0.00014979,2]
[392827623,1762008640958,-188.01178566,0.00014979,2]
[392827624,1762008640967,-500.0,0.00014979,2]
[392827625,1762008640976,-298.07453329,0.00014979,2]
[392827626,1762008640986,-500.0,0.00014979,2]
[392827627,1762008640995,-435.66889089,0.00014979,2]
[392827628,1762008641004,-315.30276234,0.00014979,2]
[392827629,1762008641014,-871.86444516,0.0001498,2]
[392827630,1762008641025,-1780.13555484,0.0001498,2]
[392827631,1762008641034,-14639.67308237,0.0001498,2]
[392827632,1762008641045,-2987.2,0.0001498,2]
[392827637,1762008643488,545.00617631,0.00014894,2]
[392827639,1762008643544,-344.04500005,0.0001498,2]
[392827645,1762008646598,-281.85543682,0.0001498,2]
[392827646,1762008646614,-362.65996,0.0001498,2]
[392827726,1762008648490,545.00617631,0.00014895,2]
[392827727,1762008653551,545.00617631,0.00014897,2]
[392827728,1762008658517,545.00617631,0.00014898,2]
[392827729,1762008702442,8909.99764738,0.0001488,2]
[392827730,1762008702468,10000.01,0.0001488,2]
[392827731,1762008702494,1090.01235262,0.0001488,2]
[392827732,1762008717953,166.66,0.00014461,2]
[392827733,1762008735952,154.11413848,0.0001488,2]
[392827738,1762008851775,600.0,0.00014795,2]
[392827739,1762008852387,600.0,0.00014795,2]
[392827740,1762008852722,600.0,0.00014795,2]
[392827741,1762008852966,600.0,0.00014795,2]
[392827742,1762008853224,600.0,0.00014795,2]
[392827743,1762008853517,600.0,0.00014795,2]
[392827744,1762008853780,600.0,0.00014795,2]
[392827745,1762008854048,600.0,0.00014795,2]
[392827746,1762008872589,3789.2235089,0.0001488,2]
[392827747,1762008872616,6022.6687911,0.0001488,2]
[392827748,1762008899087,166.66,0.00013699,2]
[392827749,1762008899280,166.66,0.00013902,2]
[392827750,1762008899680,166.66,0.00014105,2]
[392827751,1762008899891,166.66,0.00014308,2]
[392827752,1762008900112,166.66,0.00014511,2]
[392827753,1762008900300,166.66,0.00014715,2]
[392827754,1762008902119,600.0,0.00014795,2]
[392827755,1762008902167,600.0,0.00014795,2]
[392827756,1762008902210,600.0,0.00014795,2]
[392827757,1762008902467,600.0,0.00014795,2]
[392827758,1762008902753,577.3812089,0.00014795,2]
[392827759,1762008902775,22.6187911,0.00014795,2]
[392827760,1762008903026,600.0,0.00014795,2]
[392827761,1762008903323,600.0,0.00014795,2]
[392827762,1762008903580,600.0,0.00014795,2]
[392827771,1762008964855,168.0,0.00014678,2]
[392827772,1762008980529,200.0,0.00014009,2]
[392827773,1762009041340,7809.3912089,0.0001488,2]
[392827774,1762009041367,6932.2327911,0.0001488,2]
[392827775,1762009074751,543.50803,0.0001483,2]
[392827776,1762009084232,795.34,0.00013699,2]
[392827777,1762009088930,1068.26228743,0.0001488,2]
[392827780,1762009093884,660.66689147,0.00014882,2]
[392827781,1762009093909,407.59539593,0.00014882,2]
[392827782,1762009098940,1068.2622874,0.00014884,2]
[392827783,1762009103889,1068.2622874,0.00014887,2]
[392827784,1762009107605,500.0,0.00030136,120]
[392827785,1762009107848,500.0,0.0003041,120]
[392827786,1762009108874,1068.2622874,0.00014889,2]
[392827787,1762009113895,1068.2622874,0.00014891,2]
[392827788,1762009118889,1068.2622874,0.00014893,2]
[392827789,1762009123883,1068.2622874,0.00014896,2]
[392827790,1762009128932,1068.2622874,0.00014898,2]
[392827791,1762009146726,161.12,0.00013998,2]
[392827792,1762009165811,168.0,0.00014812,2]
[392827793,1762009170634,1000.0,0.00013995,2]
[392827794,1762009173680,5487.0,0.00014565,2]
[392827796,1762009210869,3183.89,0.0001488,2]
[392827797,1762009210896,10000.01,0.0001488,2]
[392827798,1762009210920,10000.01,0.0001488,2]
[392827799,1762009210945,6816.12,0.0001488,2]
[392827801,1762009236509,150.0,0.00013994,2]
[392827803,1762009260823,151.0,0.00014898,2]
[392827804,1762009260980,151.0,0.00014898,2]
[392827805,1762009261023,151.0,0.00014898,2]
[392827806,1762009261360,151.0,0.00014898,2]
[392827813,1762009361084,2429.89,0.0001488,2]
[392827814,1762009361114,10000.01,0.0001488,2]
[392827815,1762009361143,10000.01,0.0001488,2]
[392827816,1762009361174,10000.01,0.0001488,2]
[392827817,1762009361206,1699.596,0.0001488,2]
[392827818,1762009377585,194.0,0.00014836,2]
[392827819,1762009389156,168.0,0.0001473,2]
[392827820,1762009394841,168.0,0.0001478,2]
[392827821,1762009404482,505.0,0.00014682,2]
[392827825,1762009502074,1200.0,0.00014899,2]
[392827826,1762009509828,150.0,0.00013488,2]
[392827827,1762009509888,150.0,0.00013737,2]
[392827828,1762009509951,150.0,0.00013987,2]
[392827829,1762009510026,150.0,0.00014237,2]
[392827830,1762009510105,150.0,0.00014487,2]
[392827831,1762009510177,150.0,0.00014737,2]
[392827832,1762009510321,150.35996914,0.00013488,2]
[392827833,1762009510434,150.0,0.00013488,2]
[392827834,1762009510539,150.0,0.00014237,2]
[392827835,1762009515952,150.0,0.00013488,2]
[392827836,1762009516017,150.0,0.00014237,2]
[392827837,1762009516160,156.7604615,0.00013488,2]
[392827838,1762009516233,150.0,0.00013488,2]
[392827839,1762009516303,150.0,0.00013987,2]
[392827840,1762009516341,150.0,0.00014487,2]
[392827841,1762009521081,260.71700305,0.00013488,2]
[392827842,1762009530984,3547.57656631,0.0001488,2]
[392827843,1762009531010,10000.01,0.0001488,2]
[392827844,1762009531034,10000.01,0.0001488,2]
[392827845,1762009531060,6452.43343369,0.0001488,2]
[392827846,1762009532320,150.0,0.00013488,2]
[392827847,1762009559189,152.6088982,0.0001488,2]
[392827848,1762009561691,151.0,0.00014899,2]
[392827849,1762009562171,245.89101252,0.00014899,2]
[392827850,1762009564203,152.6088982,0.00014883,2]
[392827851,1762009565004,600.0,0.00014795,2]
[392827852,1762009565278,600.0,0.00014795,2]
[392827853,1762009565525,600.0,0.00014795,2]
[392827854,1762009565782,600.0,0.00014795,2]
[392827855,1762009566067,295.46775739,0.00014795,2]
[392827856,1762009566090,304.53224261,0.00014795,2]
[392827857,1762009566478,600.0,0.00014795,2]
[392827858,1762009566728,600.0,0.00014795,2]
[392827859,1762009567005,600.0,0.00014795,2]
[392827860,1762009569173,152.6088982,0.00014887,2]
[392827861,1762009574303,152.6088982,0.0001489,2]
[392827862,1762009579210,152.6088982,0.00014893,2]
[392827863,1762009584206,152.6088982,0.00014897,2]
[392827864,1762009593823,600.0,0.00014795,2]
[392827865,1762009594084,600.0,0.00014795,2]
[392827866,1762009594447,600.0,0.00014795,2]
[392827867,1762009594600,600.0,0.00014795,2]
[392827868,1762009594962,600.0,0.00014795,2]
[392827869,1762009595206,600.0,0.00014795,2]
[392827870,1762009595461,600.0,0.00014795,2]
[392827871,1762009595742,600.0,0.00014795,2]
[392827873,1762009602961,469.28724584,0.0001488,2]
[392827874,1762009607178,168.0,0.00014553,2]
[392827875,1762009607936,469.28724583,0.00014883,2]
[392827876,1762009611932,168.0,0.00014719,2]
[392827877,1762009612923,469.28724583,0.00014887,2]
[392827878,1762009617731,362.0,0.00014786,2]
[392827879,1762009617931,379.18042709,0.0001489,2]
[392827880,1762009617955,90.10681874,0.0001489,2]
[392827881,1762009622938,469.28724583,0.00014893,2]
[392827882,1762009627933,469.28724583,0.00014897,2]
[392827883,1762009633654,-248.71531821,0.000149,2]
[392827884,1762009648138,250.0,0.00013982,2]
[392827885,1762009652354,183.96,0.00011186,2]
[392827886,1762009678036,-300.0,0.000149,2]
[392827887,1762009678059,-178.0,0.000149,2]
[392827888,1762009678084,-152.6088982,0.000149,2]
[392827889,1762009678108,-469.28724583,0.000149,2]
[392827890,1762009678133,-5000.0,0.000149,2]
[392827891,1762009678159,-2500.0,0.000149,2]
[392827892,1762009678185,-195.0,0.000149,2]
[392827893,1762009678211,-195.0,0.000149,2]
[392827894,1762009678239,-300.0,0.000149,2]
[392827895,1762009678265,-168.0,0.00014905,2]
[392827896,1762009678291,-151.0,0.00014942,2]
[392827897,1762009678314,-151.0,0.00014942,2]
[392827898,1762009678336,-151.0,0.00014942,2]
[392827899,1762009678359,-151.0,0.00014943,2]
[392827900,1762009678381,-508.23,0.00014944,2]
[392827901,1762009678405,-344.39,0.00014944,2]
[392827902,1762009678427,-9999.99,0.00014944,2]
[392827903,1762009678449,-150.99,0.00014944,2]
[392827904,1762009678472,-6934.50385597,0.00014944,2]
[392827905,1762009679611,4597.13613983,0.0001488,2]
[392827906,1762009701741,4471.48322375,0.0001488,2]
[392827907,1762009701771,10000.01,0.0001488,2]
[392827908,1762009701799,10000.01,0.0001488,2]
[392827909,1762009701831,10000.01,0.0001488,2]
[392827910,1762009701856,10000.01,0.0001488,2]
[392827911,1762009701880,10000.01,0.0001488,2]
[392827912,1762009701905,10000.01,0.0001488,2]
[392827913,1762009701930,10000.01,0.0001488,2]
[392827914,1762009701956,2672.49587625,0.0001488,2]
[392827915,1762009722454,169.17459797,0.0001488,2]
[392827916,1762009727455,169.17459793,0.00014885,2]
[392827917,1762009732467,169.17459793,0.0001489,2]
[392827918,1762009737453,169.17459793,0.00014895,2]
[392827919,1762009787985,211.64499158,0.0001488,2]
[392827920,1762009792942,211.64499158,0.00014883,2]
[392827921,1762009797921,211.64499158,0.00014886,2]
[392827922,1762009810733,1622.7519,0.0001487,2]
[392827923,1762009816061,362.0,0.0001457,2]
[392827924,1762009821036,362.0,0.0001459,2]
[392827925,1762009827382,362.0,0.00014675,2]
[392827941,1762009831616,-169.17459793,0.000149,2]
[392827942,1762009831627,-1003.0,0.000149,2]
[392827943,1762009831636,-195.0,0.00014922,2]
[392827944,1762009831646,-171.53148357,0.00014943,2]
[392827945,1762009831655,-150.0,0.00014943,2]
[392827946,1762009831664,-300.0,0.00014943,2]
[392827947,1762009831676,-1200.0,0.00014943,2]
[392827948,1762009831685,-94.46346623,0.00014944,2]
[392827949,1762009831696,-757.77971691,0.00014944,2]
[392827950,1762009831776,-1934.07352637,0.00014944,2]
[392827985,1762009837512,-508.11604774,0.000149,2]
[392827986,1762009837522,-4907.38395226,0.00014944,2]
[392827987,1762009837547,-52596.42548226,0.00014944,2]
[392827988,1762009837557,-1584.16,0.00014944,2]
[392827989,1762009837566,-195.0,0.00014944,2]
[392827990,1762009837576,-300.0,0.00014944,2]
[392827991,1762009837585,-331.32242266,0.00014944,2]
[392827992,1762009837595,-150.99,0.00014944,2]
[392827993,1762009837605,-999.99,0.00014944,2]
[392827994,1762009837614,-1123.6,0.00014944,2]
[392827995,1762009837623,-9999.99,0.00014944,2]
[392827996,1762009837632,-293.91,0.00014944,2]
[392827997,1762009837642,-364.57,0.00014944,2]
[392827998,1762009837651,-3651.45,0.00014944,2]
[392827999,1762009837662,-4924.48,0.00014944,2]
[392828000,1762009837672,-151.0,0.00014946,2]
[392828001,1762009837683,-151.0,0.00014946,2]
[392828002,1762009837693,-151.0,0.00014946,2]
[392828003,1762009837702,-151.0,0.00014947,2]
[392828004,1762009837712,-319.16479733,0.00014952,2]
[392828005,1762009837722,-1060.6956545,0.00014955,2]
[392828006,1762009837732,-9999.99,0.00014959,2]
[392828007,1762009837742,-35844.13493577,0.00014959,2]
[392828018,1762009839657,-811.32029236,0.00014959,2]
[392828019,1762009839669,-2749.85,0.00014959,2]
[392828020,1762009839775,-18693.22477187,0.00014959,2]
[392828021,1762009839784,-499.99,0.00014959,2]
[392828022,1762009839794,-1835.2365,0.00014959,2]
[392828023,1762009839804,-1270.33,0.00014965,2]
[392828024,1762009839813,-151.0,0.00014965,2]
[392828025,1762009839824,-151.0,0.00014965,2]
[392828026,1762009839833,-151.0,0.00014965,2]
[392828027,1762009839843,-151.0,0.00014965,2]
[392828028,1762009839852,-151.0,0.00014965,2]
[392828029,1762009839861,-151.0,0.00014965,2]
[392828030,1762009839871,-514.84070869,0.00014965,2]
[392828031,1762009839880,-151.0,0.00014965,2]
[392828032,1762009839890,-151.0,0.00014965,2]
[392828033,1762009839899,-151.0,0.00014965,2]
[392828034,1762009839909,-151.0,0.00014965,2]
[392828035,1762009839919,-151.0,0.00014965,2]
[392828036,1762009839928,-151.0,0.00014965,2]
[392828037,1762009839939,-151.0,0.00014965,2]
[392828038,1762009839952,-151.0,0.00014965,2]
[392828039,1762009839961,-151.0,0.00014965,2]
[392828040,1762009839971,-151.0,0.00014965,2]
[392828041,1762009839981,-285.02172628,0.00014965,2]
[392828042,1762009839990,-151.0,0.0001497,2]
[392828043,1762009840000,-500.0,0.0001497,2]
[392828044,1762009840010,-500.0,0.0001497,2]
[392828045,1762009840019,-500.0,0.0001497,2]
[392828046,1762009840029,-500.0,0.0001497,2]
[392828047,1762009840038,-801.08155476,0.0001497,2]
[392828048,1762009840048,-543.50804,0.0001497,2]
[392828049,1762009840057,-188.08298846,0.0001497,2]
[392828050,1762009840067,-500.0,0.00014973,2]
[392828051,1762009840077,-500.0,0.00014973,2]
[392828052,1762009840086,-500.0,0.00014973,2]
[392828054,1762009840096,-500.0,0.00014973,2]
[392828055,1762009840105,-500.0,0.00014973,2]
[392828056,1762009840115,-500.0,0.00014973,2]
[392828057,1762009840126,-500.0,0.00014973,2]
[392828058,1762009840135,-500.0,0.00014973,2]
[392828059,1762009840148,-500.0,0.00014973,2]
[392828060,1762009840158,-500.0,0.00014973,2]
[392828061,1762009840169,-10074.8621224,0.00014974,2]
[392828062,1762009840178,-314.72,0.00014977,2]
[392828063,1762009840188,-360.34,0.00014977,2]
[392828064,1762009840198,-151.0,0.00014977,2]
[392828065,1762009840207,-500.0,0.00014979,2]
[392828066,1762009840216,-500.0,0.00014979,2]
[392828067,1762009840226,-500.0,0.00014979,2]
[392828068,1762009840237,-2763.0,0.0001498,2]
[392828069,1762009840246,-214966.85199421,0.0001498,2]
[392828070,1762009840422,-3298.01591896,0.0001498,2]
[392828071,1762009840437,-3951.37513193,0.0001498,2]
[392828072,1762009840449,-59426.7449301,0.0001498,2]
[392828095,1762009842818,-533.77400246,0.0001498,2]
[392828096,1762009842830,-333.99999995,0.0001498,2]
[392828127,1762009848220,-372.29773485,0.0001498,2]
[392828128,1762009848232,-30315.67666269,0.0001498,2]
[392828129,1762009874024,3307.12885725,0.0001488,2]
[392828130,1762009874052,10000.01,0.0001488,2]
[392828131,1762009874079,10000.01,0.0001488,2]
[392828132,1762009874106,10000.01,0.0001488,2]
[392828133,1762009874132,10000.01,0.0001488,2]
[392828134,1762009874158,10000.01,0.0001488,2]
[392828135,1762009874184,5048.15044275,0.0001488,2]
[392828137,1762009884951,1425.0,0.00014822,2]
[392828138,1762009893251,3526.85955725,0.0001468,2]
[392828139,1762009893278,296.88844275,0.0001468,2]
[392828140,1762009905608,1093.47054532,0.000148,2]
[392828141,1762010009537,200.06124155,0.0001488,2]
[392828142,1762010029708,3126.95,0.00014008,2]
[392828143,1762010044173,5282.63977038,0.0001488,2]
[392828144,1762010044200,10000.01,0.0001488,2]
[392828145,1762010044225,10000.01,0.0001488,2]
[392828146,1762010044249,10000.01,0.0001488,2]
[392828147,1762010044274,7721.84122962,0.0001488,2]
[392828148,1762010052448,2278.16877038,0.0001488,2]
[392828149,1762010052474,1020.82351971,0.0001488,2]
[392828150,1762010057416,3298.99229008,0.00014882,2]
[392828151,1762010062432,3298.99229008,0.00014884,2]
[392828152,1762010067440,2381.20190013,0.00014887,2]
[392828153,1762010067486,917.79038995,0.00014887,2]
[392828154,1762010072570,3298.99229008,0.00014889,2]
[392828155,1762010077444,3298.99229008,0.00014891,2]
[392828156,1762010082397,2484.23502989,0.00014893,2]
[392828157,1762010082423,814.75726019,0.00014893,2]
[392828158,1762010085543,500.0,0.00014,2]
[392828159,1762010085583,451.81,0.00014,2]
[392828160,1762010086338,500.0,0.00014,2]
[392828161,1762010087102,500.0,0.00014,2]
[392828162,1762010087476,3298.99229008,0.00014896,2]
[392828163,1762010087861,244.04,0.00014,2]
[392828164,1762010090028,166.95240209,0.0001488,2]
[392828165,1762010092435,3298.99229008,0.00014898,2]
[392828167,1762010097405,3298.99229008,0.000149,2]
[392828168,1762010101234,338.74403184,0.000149,2]
[392828169,1762010135818,192.69609578,0.00014782,2]
[392828170,1762010158197,200.0,0.00013991,2]
[392828171,1762010194274,279.5419,0.0001488,2]
[392828172,1762010200328,972.4764,0.0001488,2]
[392828176,1762010213861,6251.60459013,0.0001488,2]
[392828177,1762010214131,15000.0,0.0001488,2]
[392828178,1762010214154,15000.0,0.0001488,2]
[392828179,1762010214177,6078.81540987,0.0001488,2]
[392828180,1762010231740,225.82935456,0.000149,2]
[392828181,1762010245965,600.0,0.00014795,2]
[392828182,1762010246211,600.0,0.00014795,2]
[392828183,1762010246456,600.0,0.00014795,2]
[392828185,1762010247037,600.0,0.00014795,2]
[392828186,1762010247343,600.0,0.00014795,2]
[392828187,1762010247622,600.0,0.00014795,2]
[392828188,1762010248199,600.0,0.00014795,2]
[392828189,1762010248478,600.0,0.00014795,2]
[392828190,1762010265896,362.33869,0.0001483,2]
[392828191,1762010269241,600.0,0.00014795,2]
[392828192,1762010269517,600.0,0.00014795,2]
[392828193,1762010269786,600.0,0.00014795,2]
[392828194,1762010270059,600.0,0.00014795,2]
[392828195,1762010270646,600.0,0.00014795,2]
[392828196,1762010270927,533.01654557,0.00014795,2]
[392828197,1762010270948,66.98345443,0.00014795,2]
[392828198,1762010271206,600.0,0.00014795,2]
[392828199,1762010271461,600.0,0.00014795,2]
[392828201,1762010362034,150.55290304,0.000149,2]
[392828202,1762010364310,269.85755129,0.00014871,2]
[392828203,1762010393777,365.79407416,0.0001488,2]
[392828204,1762010398948,365.79407411,0.00014882,2]
[392828205,1762010403955,365.79407411,0.00014884,2]
[392828206,1762010408785,365.79407411,0.00014887,2]
[392828207,1762010413758,365.79407411,0.00014889,2]
[392828208,1762010418798,365.79407411,0.00014891,2]
[392828209,1762010419721,1604.52,0.00014023,2]
[392828210,1762010423775,365.79407411,0.00014893,2]
[392828211,1762010428777,365.79407411,0.00014896,2]
[392828212,1762010429997,154.09899142,0.0001488,2]
[392828213,1762010433762,365.79407411,0.00014898,2]
[392828214,1762010438764,365.79407411,0.000149,2]
[392828215,1762010493457,679.5609807,0.0001471,2]
[392828216,1762010535678,500.0,0.00030136,120]
[392828217,1762010535934,500.0,0.0003041,120]
[392828218,1762010536182,500.0,0.00030684,120]
[392828219,1762010536437,500.0,0.00030958,120]
[392828220,1762010536690,500.0,0.00031232,120]
[392828221,1762010536922,500.0,0.00031506,120]
[392828222,1762010601400,200.0,0.0001487,2]
[392828223,1762010620365,192.69609579,0.00014594,2]
[392828224,1762010628087,250.0,0.00014014,2]
[392828227,1762010656765,301.94891,0.0001483,2]
[392828228,1762010710768,150.0,0.00013488,2]
[392828229,1762010710837,150.0,0.00013488,2]
[392828230,1762010717738,150.0,0.00013488,2]
[392828231,1762010717893,150.0,0.00013488,2]
[392828232,1762010724803,217.93660404,0.00013488,2]
[392828234,1762010730606,154.21326683,0.00013488,2]
[392828235,1762010730675,150.0,0.00013488,2]
[392828236,1762010732320,150.0,0.00013488,2]
[392828238,1762010788038,999.0,0.00014011,3]
[392828240,1762010806771,1707.0,0.00014588,2]
[392828251,1762010914040,600.0,0.00014795,2]
[392828252,1762010914358,600.0,0.00014795,2]
[392828254,1762010914644,600.0,0.00014795,2]
[392828256,1762010915080,348.36553885,0.00014795,2]
[392828259,1762010918376,201.00864318,0.00031,120]
[392828266,1762010932716,145.32496246,0.00014795,2]
[392828267,1762010932736,454.67503754,0.00014795,2]
[392828268,1762010932985,600.0,0.00014795,2]
[392828269,1762010933402,600.0,0.00014795,2]
[392828271,1762010933713,600.0,0.00014795,2]
[392828272,1762010933990,600.0,0.00014795,2]
[392828273,1762010934462,600.0,0.00014795,2]
[392828274,1762010934532,600.0,0.00014795,2]
[392828275,1762010934814,600.0,0.00014795,2]
[392828291,1762010954679,3752.88,0.0001401,2]
[392828437,1762011005801,168.0,0.00014725,2]
[392828439,1762011010566,168.0,0.00014764,2]
[392828440,1762011016129,251.62409,0.0001483,2]
[392828441,1762011016476,168.0,0.0001482,2]
[392828475,1762011031745,-335.01682508,0.00014969,2]
[392828476,1762011031758,-864.98317492,0.00014969,2]
[392828477,1762011031767,-300.0,0.00014969,2]
[392828478,1762011031776,-195.0,0.00014969,2]